fUSD/lending_fUSD_20251122
["ID","MTS","AMOUNT","RATE_DAILY","PERIOD"]
[394625134,1763795441824,-882.47,0.00016438,2]
[394625135,1763795441833,-500.0,0.00016438,2]
[394625136,1763795441842,-500.0,0.00016438,2]
[394625137,1763795441851,-500.0,0.00016438,2]
[394625138,1763795441861,-930.74,0.00016438,2]
[394625139,1763795441870,-500.0,0.00016438,2]
[394625140,1763795441879,-500.0,0.00016438,2]
[394625141,1763795441889,-500.0,0.00016438,2]
[394625142,1763795441898,-500.0,0.00016438,2]
[394625143,1763795441907,-365.89972859,0.00016438,2]
[394625144,1763795441917,-986.57,0.00016438,2]
[394625145,1763795441926,-500.0,0.00016438,2]
[394625146,1763795441935,-684.09,0.00016438,2]
[394625147,1763795441946,-622.4,0.00016438,2]
[394625148,1763795441955,-500.0,0.00016438,2]
[394625149,1763795441965,-500.0,0.00016438,2]
[394625150,1763795441973,-636.78,0.00016438,2]
[394625151,1763795441983,-421.35599517,0.00016438,2]
[394625152,1763795441992,-903.87,0.00016438,2]
[394625153,1763795442001,-552.67,0.00016438,2]
[394625154,1763795442011,-573.25278691,0.00016438,2]
[394625155,1763795442020,-650.37,0.00016438,2]
[394625156,1763795442031,-500.0,0.00016438,2]
[394625157,1763795442040,-500.0,0.00016438,2]
[394625158,1763795442051,-500.0,0.00016438,2]
[394625159,1763795442061,-320.67334332,0.00016438,2]
[394625160,1763795442072,-500.0,0.00016438,2]
[394625161,1763795442084,-500.0,0.00016438,2]
[394625162,1763795442096,-949.19,0.00016438,2]
[394625163,1763795442107,-500.0,0.00016438,2]
[394625164,1763795442116,-500.0,0.00016438,2]
[394625165,1763795442127,-500.0,0.00016438,2]
[394625166,1763795442136,-500.0,0.00016438,2]
[394625167,1763795442145,-511.73,0.00016438,2]
[394625168,1763795442155,-500.0,0.00016438,2]
[394625169,1763795442165,-500.0,0.00016438,2]
[394625170,1763795442175,-596.89,0.00016438,2]
[394625171,1763795442185,-1022.1,0.00016438,2]
[394625172,1763795442195,-500.0,0.00016438,2]
[394625173,1763795442204,-573.58902655,0.00016438,2]
[394625174,1763795442214,-500.0,0.00016438,2]
[394625175,1763795442223,-500.0,0.00016438,2]
[394625176,1763795442233,-500.0,0.00016438,2]
[394625177,1763795442242,-500.0,0.00016438,2]
[394625178,1763795442252,-840.6,0.00016438,2]
[394625179,1763795442261,-906.66,0.00016438,2]
[394625180,1763795442270,-500.0,0.00016438,2]
[394625181,1763795442279,-500.0,0.00016438,2]
[394625182,1763795442289,-575.57487622,0.00016438,2]
[394625183,1763795442305,-500.0,0.00016438,2]
[394625184,1763795442315,-683.84,0.00016438,2]
[394625185,1763795442325,-527.98427532,0.00016438,2]
[394625186,1763795442335,-201.40402411,0.00016438,2]
[394625187,1763795442345,-500.0,0.00016438,2]
[394625188,1763795442355,-802.44,0.00016438,2]
[394625189,1763795442364,-500.0,0.00016438,2]
[394625190,1763795442374,-500.0,0.00016438,2]
[394625191,1763795442383,-500.0,0.00016438,2]
[394625192,1763795442393,-333.47304756,0.00016438,2]
[394625193,1763795442403,-500.0,0.00016438,2]
[394625194,1763795442412,-500.0,0.00016438,2]
[394625195,1763795442422,-500.0,0.00016438,2]
[394625196,1763795442431,-1663.26,0.00016438,2]
[394625197,1763795442440,-500.0,0.00016438,2]
[394625198,1763795442450,-500.0,0.00016438,2]
[394625199,1763795442459,-618.8544014,0.00016438,2]
[394625200,1763795442468,-590.17,0.00016438,2]
[394625201,1763795442478,-500.0,0.00016438,2]
[394625202,1763795442487,-500.0,0.00016438,2]
[394625203,1763795442497,-500.0,0.00016438,2]
[394625204,1763795442506,-374.91546592,0.00016438,2]
[394625205,1763795442515,-542.66418439,0.00016438,2]
[394625206,1763795442525,-710.85,0.00016438,2]
[394625207,1763795442534,-642.27,0.00016438,2]
[394625208,1763795442543,-878.89,0.00016438,2]
[394625209,1763795442552,-500.0,0.00016438,2]
[394625210,1763795442561,-500.0,0.00016438,2]
[394625211,1763795442574,-500.0,0.00016438,2]
[394625212,1763795442583,-554.72,0.00016438,2]
[394625213,1763795442593,-500.0,0.00016438,2]
[394625214,1763795442602,-500.0,0.00016438,2]
[394625215,1763795442611,-500.0,0.00016438,2]
[394625216,1763795442620,-500.0,0.00016438,2]
[394625217,1763795442629,-500.0,0.00016438,2]
[394625218,1763795442638,-571.32,0.00016438,2]
[394625219,1763795442648,-664.81,0.00016438,2]
[394625220,1763795442657,-500.0,0.00016438,2]
[394625221,1763795442666,-500.0,0.00016438,2]
[394625222,1763795442675,-500.0,0.00016438,2]
[394625223,1763795442684,-500.0,0.00016438,2]
[394625224,1763795442693,-500.0,0.00016438,2]
[394625225,1763795442702,-571.23,0.00016438,2]
[394625226,1763795442711,-500.0,0.00016438,2]
[394625227,1763795442721,-1071.02,0.00016438,2]
[394625228,1763795442730,-907.63,0.00016438,2]
[394625229,1763795442739,-500.0,0.00016438,2]
[394625230,1763795442751,-500.0,0.00016438,2]
[394625231,1763795442761,-500.0,0.00016438,2]
[394625232,1763795442772,-500.0,0.00016438,2]
[394625233,1763795442784,-522.16714919,0.00016438,2]
[394625234,1763795442793,-500.0,0.00016438,2]
[394625235,1763795442805,-500.0,0.00016438,2]
[394625236,1763795442817,-579.39634238,0.00016438,2]
[394625237,1763795442826,-1282.27,0.00016438,2]
[394625239,1763795442835,-507.23103176,0.00016438,2]
[394625240,1763795442845,-500.0,0.00016438,2]
[394625242,1763795442854,-500.0,0.00016438,2]
[394625244,1763795442864,-510.31,0.00016438,2]
[394625245,1763795442874,-500.0,0.00016438,2]
[394625247,1763795442884,-500.0,0.00016438,2]
[394625249,1763795442894,-551.38,0.00016438,2]
[394625251,1763795442904,-500.0,0.00016438,2]
[394625252,1763795442913,-500.0,0.00016438,2]
[394625254,1763795442922,-500.0,0.00016438,2]
[394625256,1763795442933,-500.0,0.00016438,2]
[394625258,1763795442943,-500.0,0.00016438,2]
[394625259,1763795442953,-500.0,0.00016438,2]
[394625260,1763795442961,-500.0,0.00016438,2]
[394625261,1763795442970,-500.0,0.00016438,2]
[394625262,1763795442979,-500.0,0.00016438,2]
[394625263,1763795442990,-4611.01,0.00016438,2]
[394625264,1763795443001,-500.0,0.00016438,2]
[394625265,1763795443011,-559.84,0.00016438,2]
[394625266,1763795443020,-500.0,0.00016438,2]
[394625267,1763795443030,-500.0,0.00016438,2]
[394625268,1763795443039,-731.85,0.00016438,2]
[394625269,1763795443049,-500.0,0.00016438,2]
[394625270,1763795443059,-500.0,0.00016438,2]
[394625271,1763795443069,-921.22,0.00016438,2]
[394625272,1763795443078,-500.0,0.00016438,2]
[394625273,1763795443090,-500.0,0.00016438,2]
[394625274,1763795443100,-500.0,0.00016438,2]
[394625275,1763795443109,-538.25,0.00016438,2]
[394625276,1763795443118,-1314.18,0.00016438,2]
[394625277,1763795443127,-564.41,0.00016438,2]
[394625278,1763795443138,-500.0,0.00016438,2]
[394625279,1763795443148,-333.10938727,0.00016438,2]
[394625280,1763795443160,-745.5,0.00016438,2]
[394625281,1763795443172,-1084.77,0.00016438,2]
[394625282,1763795443182,-500.0,0.00016438,2]
[394625283,1763795443191,-500.0,0.00016438,2]
[394625284,1763795443201,-510.94655288,0.00016438,2]
[394625285,1763795443211,-868.15,0.00016438,2]
[394625286,1763795443221,-500.0,0.00016438,2]
[394625287,1763795443230,-500.0,0.00016438,2]
[394625288,1763795443240,-500.0,0.00016438,2]
[394625289,1763795443249,-500.0,0.00016438,2]
[394625290,1763795443259,-500.0,0.00016438,2]
[394625291,1763795443269,-500.0,0.00016438,2]
[394625292,1763795443278,-1394.24,0.00016438,2]
[394625293,1763795443288,-833.98,0.00016438,2]
[394625294,1763795443298,-1003.9,0.00016438,2]
[394625295,1763795443307,-968.93,0.00016438,2]
[394625296,1763795443317,-500.0,0.00016438,2]
[394625297,1763795443331,-500.0,0.00016438,2]
[394625298,1763795443340,-500.0,0.00016438,2]
[394625299,1763795443350,-500.0,0.00016438,2]
[394625300,1763795443360,-500.0,0.00016438,2]
[394625301,1763795443369,-500.0,0.00016438,2]
[394625302,1763795443379,-156.93542263,0.00016438,2]
[394625303,1763795443389,-500.0,0.00016438,2]
[394625304,1763795443398,-1270.78,0.00016438,2]
[394625305,1763795443408,-591.78,0.00016438,2]
[394625306,1763795443417,-1323.25,0.00016438,2]
[394625307,1763795443427,-500.0,0.00016438,2]
[394625308,1763795443436,-500.0,0.00016438,2]
[394625309,1763795443446,-500.0,0.00016438,2]
[394625310,1763795443456,-500.0,0.00016438,2]
[394625311,1763795443466,-500.0,0.00016438,2]
[394625312,1763795443476,-500.0,0.00016438,2]
[394625313,1763795443486,-960.48,0.00016438,2]
[394625314,1763795443496,-500.0,0.00016438,2]
[394625315,1763795443506,-1756.44,0.00016438,2]
[394625316,1763795443518,-1270.58,0.00016438,2]
[394625317,1763795443527,-500.0,0.00016438,2]
[394625318,1763795443537,-5897.28,0.00016438,2]
[394625319,1763795443547,-500.0,0.00016438,2]
[394625320,1763795443556,-300.0,0.00016438,2]
[394625321,1763795443566,-500.0,0.00016438,2]
[394625322,1763795443576,-500.0,0.00016438,2]
[394625323,1763795443586,-673.29,0.00016438,2]
[394625324,1763795443596,-500.0,0.00016438,2]
[394625325,1763795443607,-642.99,0.00016438,2]
[394625326,1763795443620,-500.0,0.00016438,2]
[394625327,1763795443631,-500.0,0.00016438,2]
[394625328,1763795443641,-500.0,0.00016438,2]
[394625329,1763795443652,-793.06,0.00016438,2]
[394625330,1763795443661,-539.56,0.00016438,2]
[394625331,1763795443671,-500.0,0.00016438,2]
[394625332,1763795443681,-500.0,0.00016438,2]
[394625333,1763795443691,-500.0,0.00016438,2]
[394625334,1763795443700,-500.0,0.00016438,2]
[394625335,1763795443710,-500.0,0.00016438,2]
[394625336,1763795443719,-500.0,0.00016438,2]
[394625337,1763795443729,-500.0,0.00016438,2]
[394625338,1763795443739,-1013.52,0.00016438,2]
[394625339,1763795443749,-500.0,0.00016438,2]
[394625340,1763795443758,-500.0,0.00016438,2]
[394625342,1763795443769,-500.0,0.00016438,2]
[394625343,1763795443779,-500.0,0.00016438,2]
[394625344,1763795443789,-500.0,0.00016438,2]
[394625345,1763795443800,-732.25,0.00016438,2]
[394625346,1763795443810,-500.0,0.00016438,2]
[394625347,1763795443820,-500.0,0.00016438,2]
[394625348,1763795443831,-500.0,0.00016438,2]
[394625349,1763795443842,-3543.04,0.00016438,2]
[394625351,1763795443852,-500.0,0.00016438,2]
[394625352,1763795443864,-500.0,0.00016438,2]
[394625353,1763795443874,-500.0,0.00016438,2]
[394625354,1763795443884,-1235.15,0.00016438,2]
[394625355,1763795443894,-1277.22,0.00016438,2]
[394625356,1763795443905,-500.0,0.00016438,2]
[394625358,1763795443914,-500.0,0.00016438,2]
[394625359,1763795443924,-500.0,0.00016438,2]
[394625360,1763795443934,-500.0,0.00016438,2]
[394625361,1763795443946,-500.0,0.00016438,2]
[394625362,1763795443956,-151.0,0.00016438,2]
[394625363,1763795443965,-500.0,0.00016438,2]
[394625364,1763795443975,-151.0,0.00016438,2]
[394625365,1763795443985,-500.0,0.00016438,2]
[394625366,1763795443995,-500.0,0.00016438,2]
[394625367,1763795444005,-500.0,0.00016438,2]
[394625368,1763795444014,-500.0,0.00016438,2]
[394625369,1763795444024,-1044.2,0.00016438,2]
[394625370,1763795444034,-505.65746021,0.00016438,2]
[394625371,1763795444044,-740.95,0.00016438,2]
[394625372,1763795444055,-500.0,0.00016438,2]
[394625373,1763795444066,-500.0,0.00016438,2]
[394625374,1763795444077,-804.88,0.00016438,2]
[394625375,1763795444090,-500.0,0.00016438,2]
[394625376,1763795444104,-698.82,0.00016438,2]
[394625377,1763795444114,-726.81,0.00016438,2]
[394625378,1763795444123,-500.0,0.00016438,2]
[394625379,1763795444134,-500.0,0.00016438,2]
[394625380,1763795444143,-500.0,0.00016438,2]
[394625381,1763795444154,-500.0,0.00016438,2]
[394625382,1763795444165,-500.0,0.00016438,2]
[394625383,1763795444175,-467.03523494,0.00016438,2]
[394625384,1763795444184,-317.56931586,0.00016438,2]
[394625385,1763795444194,-597.4,0.00016438,2]
[394625386,1763795444204,-500.0,0.00016438,2]
[394625387,1763795444214,-500.0,0.00016438,2]
[394625388,1763795444223,-500.0,0.00016438,2]
[394625389,1763795444233,-500.0,0.00016438,2]
[394625390,1763795444243,-500.0,0.00016438,2]
[394625391,1763795444252,-691.58,0.00016438,2]
[394625392,1763795444262,-564.65,0.00016438,2]
[394625393,1763795444272,-500.0,0.00016438,2]
[394625394,1763795444281,-500.0,0.00016438,2]
[394625395,1763795444290,-500.0,0.00016438,2]
[394625396,1763795444300,-500.0,0.00016438,2]
[394625397,1763795444309,-500.0,0.00016438,2]
[394625398,1763795444319,-500.0,0.00016438,2]
[394625399,1763795444338,-500.0,0.00016438,2]
[394625400,1763795444348,-500.0,0.00016438,2]
[394625401,1763795444357,-500.0,0.00016438,2]
[394625402,1763795444367,-501.4498422,0.00016438,2]
[394625403,1763795444376,-395.24308149,0.00016438,2]
[394625404,1763795444386,-655.79,0.00016438,2]
[394625405,1763795444396,-500.0,0.00016438,2]
[394625406,1763795444406,-500.0,0.00016438,2]
[394625407,1763795444416,-500.0,0.00016438,2]
[394625408,1763795444426,-500.0,0.00016438,2]
[394625409,1763795444437,-782.5,0.00016438,2]
[394625410,1763795444448,-647.09,0.00016438,2]
[394625411,1763795444458,-500.0,0.00016438,2]
[394625412,1763795444468,-500.0,0.00016438,2]
[394625413,1763795444477,-904.27,0.00016438,2]
[394625414,1763795444487,-500.0,0.00016438,2]
[394625415,1763795444497,-500.0,0.00016438,2]
[394625416,1763795444507,-1622.6,0.00016438,2]
[394625417,1763795444518,-500.0,0.00016438,2]
[394625418,1763795444529,-500.0,0.00016438,2]
[394625419,1763795444806,-500.0,0.00016438,2]
[394625420,1763795444816,-630.75162881,0.00016438,2]
[394625421,1763795444826,-733.12,0.00016438,2]
[394625422,1763795444835,-787.46,0.00016438,2]
[394625423,1763795444844,-500.0,0.00016438,2]
[394625424,1763795444853,-500.0,0.00016438,2]
[394625425,1763795444862,-3465.48,0.00016438,2]
[394625426,1763795444872,-500.0,0.00016438,2]
[394625427,1763795444882,-500.0,0.00016438,2]
[394625428,1763795444891,-500.0,0.00016438,2]
[394625429,1763795444900,-500.0,0.00016438,2]
[394625430,1763795444911,-500.0,0.00016438,2]
[394625431,1763795444922,-500.0,0.00016438,2]
[394625432,1763795444931,-1361.43,0.00016438,2]
[394625433,1763795444940,-500.0,0.00016438,2]
[394625434,1763795444950,-500.0,0.00016438,2]
[394625435,1763795444959,-500.0,0.00016438,2]
[394625436,1763795444969,-500.0,0.00016438,2]
[394625437,1763795444978,-500.0,0.00016438,2]
[394625438,1763795444988,-429.38109159,0.00016438,2]
[394625439,1763795444997,-517.54,0.00016438,2]
[394625440,1763795445006,-419.73583391,0.00016438,2]
[394625441,1763795445016,-500.0,0.00016438,2]
[394625442,1763795445025,-500.0,0.00016438,2]
[394625443,1763795445034,-500.0,0.00016438,2]
[394625444,1763795445043,-500.0,0.00016438,2]
[394625445,1763795445052,-2776.22,0.00016438,2]
[394625446,1763795445062,-500.0,0.00016438,2]
[394625447,1763795445071,-953.39,0.00016438,2]
[394625448,1763795445081,-500.0,0.00016438,2]
[394625449,1763795445093,-500.0,0.00016438,2]
[394625450,1763795445103,-500.0,0.00016438,2]
[394625451,1763795445112,-679.39,0.00016438,2]
[394625452,1763795445121,-500.0,0.00016438,2]
[394625453,1763795445132,-500.0,0.00016438,2]
[394625454,1763795445141,-1700.59,0.00016438,2]
[394625455,1763795445151,-500.0,0.00016438,2]
[394625456,1763795445161,-500.0,0.00016438,2]
[394625457,1763795445171,-500.0,0.00016438,2]
[394625458,1763795445181,-1365.73,0.00016438,2]
[394625459,1763795445192,-1067.76,0.00016438,2]
[394625460,1763795445201,-1141.67,0.00016438,2]
[394625461,1763795445211,-500.0,0.00016438,2]
[394625462,1763795445220,-180.63703773,0.00016438,2]
[394625463,1763795445229,-500.0,0.00016438,2]
[394625464,1763795445239,-500.0,0.00016438,2]
[394625465,1763795445249,-500.0,0.00016438,2]
[394625466,1763795445259,-400.0,0.00016438,2]
[394625467,1763795445269,-500.0,0.00016438,2]
[394625468,1763795445279,-505.09,0.00016438,2]
[394625469,1763795445288,-500.0,0.00016438,2]
[394625470,1763795445297,-542.72980789,0.00016438,2]
[394625471,1763795445306,-597.03,0.00016438,2]
[394625472,1763795445316,-500.0,0.00016438,2]
[394625473,1763795445326,-507.99452148,0.00016438,2]
[394625474,1763795445335,-500.0,0.00016438,2]
[394625475,1763795445344,-500.0,0.00016438,2]
[394625476,1763795445354,-500.0,0.00016438,2]
[394625477,1763795445363,-500.0,0.00016438,2]
[394625478,1763795445372,-500.0,0.00016438,2]
[394625479,1763795445382,-500.0,0.00016438,2]
[394625480,1763795445392,-500.0,0.00016438,2]
[394625481,1763795445402,-1561.68,0.00016438,2]
[394625482,1763795445411,-2836.92,0.00016438,2]
[394625483,1763795445421,-500.0,0.00016438,2]
[394625484,1763795445431,-549.36,0.00016438,2]
[394625485,1763795445441,-500.0,0.00016438,2]
[394625486,1763795445451,-500.0,0.00016438,2]
[394625487,1763795445460,-500.0,0.00016438,2]
[394625488,1763795445470,-500.0,0.00016438,2]
[394625489,1763795445483,-500.0,0.00016438,2]
[394625490,1763795445495,-500.0,0.00016438,2]
[394625491,1763795445505,-241.6577499,0.00016438,2]
[394625492,1763795445515,-500.0,0.00016438,2]
[394625493,1763795445525,-500.0,0.00016438,2]
[394625494,1763795445535,-275.96224947,0.00016438,2]
[394625495,1763795445545,-500.0,0.00016438,2]
[394625496,1763795445554,-500.0,0.00016438,2]
[394625497,1763795445563,-430.81400455,0.00016438,2]
[394625498,1763795445573,-500.0,0.00016438,2]
[394625499,1763795445583,-590.47874664,0.00016438,2]
[394625500,1763795445593,-500.0,0.00016438,2]
[394625501,1763795445602,-500.0,0.00016438,2]
[394625502,1763795445611,-586.80512942,0.00016438,2]
[394625503,1763795445620,-500.0,0.00016438,2]
[394625504,1763795445629,-294.53852323,0.00016438,2]
[394625505,1763795445638,-1018.18,0.00016438,2]
[394625506,1763795445648,-759.31,0.00016438,2]
[394625507,1763795445657,-2177.24,0.00016438,2]
[394625508,1763795445666,-1213.88,0.00016438,2]
[394625509,1763795445678,-910.36,0.00016438,2]
[394625510,1763795445686,-672.23,0.00016438,2]
[394625511,1763795445695,-500.0,0.00016438,2]
[394625512,1763795445704,-500.0,0.00016438,2]
[394625513,1763795445714,-500.0,0.00016438,2]
[394625514,1763795445723,-500.0,0.00016438,2]
[394625515,1763795445734,-500.0,0.00016438,2]
[394625516,1763795445746,-564.44501468,0.00016438,2]
[394625517,1763795445756,-500.0,0.00016438,2]
[394625518,1763795445766,-500.0,0.00016438,2]
[394625519,1763795445776,-1090.15,0.00016438,2]
[394625520,1763795445787,-1094.76,0.00016438,2]
[394625521,1763795445796,-387.36440118,0.00016438,2]
[394625522,1763795445805,-872.6,0.00016438,2]
[394625523,1763795445814,-500.0,0.00016438,2]
[394625524,1763795445823,-500.0,0.00016438,2]
[394625525,1763795445832,-500.0,0.00016438,2]
[394625526,1763795445841,-500.0,0.00016438,2]
[394625527,1763795445851,-500.0,0.00016438,2]
[394625528,1763795445860,-500.0,0.00016438,2]
[394625529,1763795445870,-500.0,0.00016438,2]
[394625530,1763795445879,-500.0,0.00016438,2]
[394625531,1763795445888,-500.0,0.00016438,2]
[394625532,1763795445902,-500.0,0.00016438,2]
[394625533,1763795445912,-500.0,0.00016438,2]
[394625534,1763795445922,-500.0,0.00016438,2]
[394625535,1763795445932,-500.0,0.00016438,2]
[394625536,1763795445942,-500.0,0.00016438,2]
[394625537,1763795445953,-534.06059349,0.00016438,2]
[394625538,1763795445963,-8935.96,0.00016438,2]
[394625539,1763795445972,-1399.76,0.00016438,2]
[394625540,1763795445982,-2311.26,0.00016438,2]
[394625541,1763795445991,-500.0,0.00016438,2]
[394625542,1763795446000,-500.0,0.00016438,2]
[394625543,1763795446009,-500.0,0.00016438,2]
[394625544,1763795446018,-626.87,0.00016438,2]
[394625545,1763795446028,-500.0,0.00016438,2]
[394625546,1763795446037,-773.67,0.00016438,2]
[394625547,1763795446046,-902.42,0.00016438,2]
[394625548,1763795446055,-500.0,0.00016438,2]
[394625549,1763795446064,-500.0,0.00016438,2]
[394625550,1763795446073,-500.0,0.00016438,2]
[394625551,1763795446082,-500.0,0.00016438,2]
[394625552,1763795446094,-500.0,0.00016438,2]
[394625553,1763795446103,-500.0,0.00016438,2]
[394625554,1763795446113,-531.43,0.00016438,2]
[394625555,1763795446122,-500.0,0.00016438,2]
[394625556,1763795446134,-2809.48,0.00016438,2]
[394625557,1763795446143,-152.18702685,0.00016438,2]
[394625558,1763795446153,-500.0,0.00016438,2]
[394625559,1763795446162,-873.93,0.00016438,2]
[394625560,1763795446174,-819.4,0.00016438,2]
[394625561,1763795446184,-787.03,0.00016438,2]
[394625562,1763795446193,-283.975791,0.00016438,2]
[394625563,1763795446202,-151.0,0.00016438,2]
[394625564,1763795446211,-500.0,0.00016472,2]
[394625565,1763795446221,-500.89886649,0.00016473,2]
[394625566,1763795446230,-500.83614693,0.00016473,2]
[394625567,1763795446240,-500.0,0.00016473,2]
[394625568,1763795446249,-500.77634699,0.00016473,2]
[394625569,1763795446259,-501.83220952,0.00016473,2]
[394625570,1763795446269,-500.0,0.00016473,2]
[394625571,1763795446279,-500.88154671,0.00016473,2]
[394625572,1763795446289,-458.88345656,0.00016473,2]
[394625573,1763795446299,-500.0,0.00016473,2]
[394625574,1763795446308,-500.0,0.00016473,2]
[394625575,1763795446317,-500.0,0.00016473,2]
[394625576,1763795446327,-161.26379295,0.00016473,2]
[394625577,1763795446336,-232.07579854,0.00016473,2]
[394625578,1763795446345,-500.0,0.00016473,2]
[394625579,1763795446355,-500.0,0.00016473,2]
[394625580,1763795446364,-150.0,0.00016473,2]
[394625581,1763795446374,-150.0,0.00016473,2]
[394625582,1763795446383,-300.0,0.00016492,2]
[394625583,1763795446393,-300.0,0.00016492,2]
[394625584,1763795446404,-300.0,0.00016492,2]
[394625585,1763795446413,-539.85513522,0.00016493,2]
[394625586,1763795446422,-500.0,0.00016493,2]
[394625587,1763795446432,-500.0,0.00016493,2]
[394625589,1763795446442,-320.21084814,0.00016493,2]
[394625591,1763795446451,-500.0,0.00016493,2]
[394625592,1763795446461,-500.0,0.00016493,2]
[394625593,1763795446470,-500.0,0.00016493,2]
[394625594,1763795446480,-500.0,0.00016493,2]
[394625595,1763795446489,-500.0,0.00016493,2]
[394625596,1763795446499,-500.0,0.00016493,2]
[394625597,1763795446516,-500.0,0.00016493,2]
[394625598,1763795446526,-500.0,0.00016493,2]
[394625599,1763795446537,-500.0,0.00016493,2]
[394625600,1763795446547,-500.0,0.00016493,2]
[394625601,1763795446557,-500.0,0.00016493,2]
[394625602,1763795446567,-1209.88,0.00016493,2]
[394625603,1763795446576,-5154.75,0.00016493,2]
[394625604,1763795446586,-500.0,0.00016493,2]
[394625605,1763795446596,-211.51803067,0.00016493,2]
[394625606,1763795446605,-995.45,0.00016493,2]
[394625607,1763795446615,-213.74899365,0.00016493,2]
[394625608,1763795446623,-666.13,0.00016493,2]
[394625609,1763795446633,-500.0,0.00016493,2]
[394625610,1763795446642,-1192.89,0.00016493,2]
[394625611,1763795446651,-661.37,0.00016493,2]
[394625612,1763795446660,-719.39,0.00016493,2]
[394625613,1763795446669,-500.0,0.00016493,2]
[394625614,1763795446680,-500.0,0.00016493,2]
[394625615,1763795446689,-868.51,0.00016493,2]
[394625616,1763795446700,-500.0,0.00016493,2]
[394625617,1763795446709,-500.0,0.00016493,2]
[394625618,1763795446718,-618.38,0.00016493,2]
[394625619,1763795446729,-500.0,0.00016493,2]
[394625620,1763795446739,-500.0,0.00016493,2]
[394625621,1763795446748,-1206.92,0.00016493,2]
[394625622,1763795446757,-500.0,0.00016493,2]
[394625623,1763795446766,-659.86,0.00016493,2]
[394625624,1763795446775,-500.0,0.00016493,2]
[394625625,1763795446784,-550.71162407,0.00016493,2]
[394625626,1763795446794,-500.0,0.00016493,2]
[394625627,1763795446804,-500.0,0.00016493,2]
[394625628,1763795446813,-500.0,0.00016493,2]
[394625629,1763795446822,-500.0,0.00016493,2]
[394625630,1763795446831,-500.0,0.00016493,2]
[394625631,1763795446840,-500.0,0.00016493,2]
[394625632,1763795446849,-500.0,0.00016493,2]
[394625633,1763795446859,-793.08,0.00016493,2]
[394625634,1763795446868,-500.0,0.00016493,2]
[394625635,1763795446877,-500.0,0.00016493,2]
[394625636,1763795446886,-500.0,0.00016493,2]
[394625637,1763795446895,-153.34573333,0.00016493,2]
[394625638,1763795446904,-500.0,0.00016493,2]
[394625639,1763795446913,-500.0,0.00016493,2]
[394625640,1763795446922,-500.0,0.00016493,2]
[394625641,1763795446931,-500.0,0.00016493,2]
[394625642,1763795446941,-500.0,0.00016493,2]
[394625643,1763795446951,-500.0,0.00016493,2]
[394625644,1763795446960,-752.21,0.00016493,2]
[394625645,1763795446970,-724.34,0.00016493,2]
[394625646,1763795446979,-500.0,0.00016493,2]
[394625647,1763795446988,-154.31813953,0.00016493,2]